bitfinex/quotes_BTCUSD_20260117
["timestamp","ask_amount","ask_price","bid_price","bid_amount"]
[1768621908337,0.01049328,95299.0,95295.0,0.01049372]
[1768621908506,0.01049328,95299.0,95294.0,0.01049384]
[1768621908933,0.01049339,95298.0,95294.0,0.01049384]
[1768621909606,0.0104935,95297.0,95293.0,0.01049395]
[1768621909904,0.01049339,95298.0,95294.0,0.01049384]
[1768621910106,0.01049339,95298.0,95290.0,0.01049428]
[1768621910107,0.01049372,95295.0,95290.0,0.01049428]
[1768621910306,0.05246802,95297.0,95290.0,0.01049428]
[1768621910507,0.05246822,95296.0,95290.0,0.01049428]
[1768621910931,0.01049372,95295.0,95290.0,0.01049428]
[1768621911136,0.01049361,95296.0,95290.0,0.01049428]
[1768621911338,0.01049372,95295.0,95291.0,0.01049417]
[1768621911669,0.01049361,95296.0,95292.0,0.01049406]
[1768621912072,0.01049372,95295.0,95291.0,0.01049417]
[1768621913218,0.01049361,95296.0,95292.0,0.01049406]
[1768621914256,0.01049361,95296.0,95291.0,0.01049417]
[1768621914442,0.01049361,95296.0,95292.0,0.01049406]
[1768621915279,0.0104935,95297.0,95292.0,0.01049406]
[1768621915688,0.01049361,95296.0,95292.0,0.01049406]
[1768621918863,0.01049372,95295.0,95291.0,0.01049417]
[1768621919072,0.01049361,95296.0,95291.0,0.01049417]
[1768621919481,0.01049372,95295.0,95290.0,0.01049428]
[1768621919692,0.01049372,95295.0,95291.0,0.01049417]
[1768621920299,0.01049361,95296.0,95291.0,0.01049417]
[1768621920481,0.01049372,95295.0,95291.0,0.01049417]
[1768621923632,0.01049361,95296.0,95291.0,0.01049417]
[1768621923999,0.01049361,95296.0,95292.0,0.01049406]
[1768621926191,0.01049361,95296.0,95291.0,0.06296493]
[1768621926192,0.01049372,95295.0,95290.0,0.01049428]
[1768621926580,0.01049384,95294.0,95289.0,0.0001602]
[1768621926745,0.01049384,95294.0,95290.0,0.01049428]
[1768621926922,0.01049372,95295.0,95290.0,0.01049428]
[1768621927369,0.01049372,95295.0,95289.0,0.01065459]
[1768621927569,0.01049372,95295.0,95290.0,0.01049428]
[1768621927750,0.01049384,95294.0,95290.0,0.01049428]
[1768621927948,0.01049395,95293.0,95289.0,0.01065459]
[1768621928232,0.01049384,95294.0,95290.0,0.01049428]
[1768621929340,0.01049384,95294.0,95289.0,0.01065459]
[1768621929542,0.01049384,95294.0,95290.0,0.01049428]
[1768621929932,0.01049372,95295.0,95291.0,0.01049417]
[1768621930853,0.0104935,95297.0,95292.0,0.01049406]
[1768621931262,0.0104935,95297.0,95293.0,0.01049395]
[1768621932186,0.01049339,95298.0,95293.0,0.01049395]
[1768621932335,0.0104935,95297.0,95292.0,0.01049406]
[1768621932535,0.01049361,95296.0,95292.0,0.01049406]
[1768621932744,0.01049361,95296.0,95291.0,0.01049417]
[1768621933411,0.01049361,95296.0,95292.0,0.01049406]
[1768621935351,0.0104935,95297.0,95293.0,0.01049395]
[1768621935980,0.01049339,95298.0,95293.0,0.01049395]
[1768621936153,0.0104935,95297.0,95293.0,0.01049395]
[1768621937465,0.01049339,95298.0,95294.0,0.01049384]
[1768621938287,0.0104935,95297.0,95293.0,0.01049395]
[1768621938489,0.01049361,95296.0,95292.0,0.01049406]
[1768621938974,0.01049361,95296.0,95292.0,0.01044867]
[1768621940381,0.01049372,95295.0,95291.0,0.01049417]
[1768621940698,0.0104935,95297.0,95292.0,0.01049406]
[1768621940909,0.0104935,95297.0,95292.0,0.06296403]
[1768621941343,0.01049328,95299.0,95294.0,0.01049384]
[1768621941548,0.01049339,95298.0,95294.0,0.01049384]
[1768621942175,0.01049328,95299.0,95295.0,0.01049372]
[1768621942385,0.01049328,95299.0,95294.0,0.01049384]
[1768621942600,0.01049328,95299.0,95295.0,0.01049372]
[1768621943394,0.06295859,95301.0,95296.0,0.01049361]
[1768621943603,0.06295915,95300.0,95295.0,0.01049372]
[1768621943814,0.06295915,95300.0,95294.0,0.01049384]
[1768621943815,0.01049339,95298.0,95294.0,0.01049384]
[1768621944024,0.06296042,95298.0,95293.0,0.01049395]
[1768621944429,0.0104935,95297.0,95292.0,0.01049406]
[1768621944654,0.0104935,95297.0,95292.0,0.01044867]
[1768621944791,0.01049361,95296.0,95292.0,0.01044867]
[1768621945154,0.01049339,95298.0,95293.0,0.01049395]
[1768621945350,0.01049328,95299.0,95294.0,0.01049384]
[1768621945863,0.01049328,95299.0,95295.0,0.01049372]
[1768621947889,0.01049317,95300.0,95296.0,0.01049361]
[1768621948186,0.06295961,95300.0,95293.0,0.01049395]
[1768621948402,0.01049339,95298.0,95293.0,0.01049395]
[1768621949374,0.0104935,95297.0,95292.0,0.01044867]
[1768621949589,0.01049339,95298.0,95294.0,0.01049384]
[1768621950426,0.02326851,95301.0,95296.0,0.01049361]
[1768621950654,0.01049328,95299.0,95294.0,0.01049384]
[1768621951077,0.01049328,95299.0,95295.0,0.01049372]
[1768621951606,0.01049339,95298.0,95294.0,0.01049384]
[1768621951828,0.01049317,95300.0,95295.0,0.01049372]
[1768621952332,0.01049317,95300.0,95295.0,0.06296221]
[1768621952611,0.0629578,95302.0,95296.0,0.06296132]
[1768621952865,0.01049306,95301.0,95296.0,0.01049361]
[1768621953071,0.01049306,95301.0,95297.0,0.0104935]
[1768621953779,0.01049306,95301.0,95296.0,0.01049361]
[1768621954627,0.01049306,95301.0,95297.0,0.0104935]
[1768621955056,0.01049295,95302.0,95298.0,0.01049339]
[1768621956146,0.01049306,95301.0,95297.0,0.0104935]
[1768621956509,0.01049317,95300.0,95295.0,0.01049372]
[1768621956716,0.01049317,95300.0,95296.0,0.01049361]
[1768621956938,0.06295929,95300.0,95295.0,0.01049372]
[1768621957134,0.01049328,95299.0,95295.0,0.01049372]
[1768621957337,0.01049306,95301.0,95297.0,0.0104935]
[1768621958415,0.01049295,95302.0,95298.0,0.01049339]
[1768621960110,0.01049306,95301.0,95297.0,0.0104935]
[1768621960850,0.01049317,95300.0,95296.0,0.01049361]
[1768621961098,0.01049306,95301.0,95297.0,0.0104935]
[1768621961303,0.0232684,95302.0,95298.0,0.01049339]
[1768621962116,0.01049306,95301.0,95297.0,0.0104935]
[1768621962323,0.0232684,95302.0,95298.0,0.01049339]
[1768621962490,0.01277545,95302.0,95298.0,0.01049339]
[1768621962696,0.01049295,95302.0,95298.0,0.01049339]
[1768621963030,0.01049284,95303.0,95298.0,0.01049339]
[1768621963228,0.01049284,95303.0,95296.0,0.01049361]
[1768621963229,0.01049306,95301.0,95296.0,0.01049361]
[1768621963410,0.01049317,95300.0,95296.0,0.01049361]
[1768621963592,0.06295791,95302.0,95297.0,0.0104935]
[1768621963593,0.01049295,95302.0,95297.0,0.0104935]
[1768621963932,0.01049295,95302.0,95298.0,0.01049339]
[1768621964146,0.01049284,95303.0,95299.0,0.01049328]
[1768621964331,0.01049284,95303.0,95298.0,0.01049339]
[1768621964573,0.01049295,95302.0,95298.0,0.01049339]
[1768621965178,0.01049306,95301.0,95297.0,0.0104935]
[1768621965730,0.01049295,95302.0,95297.0,0.0104935]
[1768621966138,0.01049306,95301.0,95297.0,0.0104935]
[1768621966706,0.01049306,95301.0,95296.0,0.01049361]
[1768621966826,0.01049295,95302.0,95297.0,0.0104935]
[1768621967288,0.01049306,95301.0,95297.0,0.0104935]
[1768621967577,0.01049295,95302.0,95298.0,0.01049339]
[1768621968036,0.01049306,95301.0,95297.0,0.0104935]
[1768621968216,0.06295713,95303.0,95298.0,0.01049339]
[1768621968405,0.01049284,95303.0,95298.0,0.01049339]
[1768621968616,0.01049284,95303.0,95299.0,0.01049328]
[1768621968823,0.13761262,95305.0,95299.0,0.01049328]
[1768621968824,0.12712,95305.0,95304.0,0.05246369]
[1768621969038,0.12712,95310.0,95307.0,0.0104924]
[1768621969187,0.13761207,95310.0,95306.0,0.01049251]
[1768621969393,0.01049218,95309.0,95305.0,0.01049262]
[1768621969609,0.13761207,95310.0,95305.0,0.01049262]
[1768621969811,0.01049229,95308.0,95304.0,0.01049273]
[1768621970207,0.01049229,95308.0,95303.0,0.01049284]
[1768621970670,0.01049218,95309.0,95304.0,0.01049273]
[1768621970798,0.01049229,95308.0,95303.0,0.01049284]
[1768621972322,0.01049218,95309.0,95305.0,0.01049262]
[1768621972528,0.01049218,95309.0,95304.0,0.01049273]
[1768621972758,0.01049207,95310.0,95305.0,0.01049262]
[1768621973526,0.01049218,95309.0,95304.0,0.01049273]
[1768621973973,0.01049207,95310.0,95304.0,0.06295602]
[1768621974202,0.01049218,95309.0,95304.0,0.01049273]
[1768621974490,0.01049229,95308.0,95304.0,0.01049273]
[1768621975174,0.01049229,95308.0,95303.0,0.01049284]
[1768621975548,0.01049218,95309.0,95305.0,0.01049262]
[1768621975960,0.01049218,95309.0,95304.0,0.01049273]
[1768621976153,0.01049229,95308.0,95304.0,0.01049273]
[1768621977714,0.01049218,95309.0,95305.0,0.01049262]
[1768621977889,0.01049229,95308.0,95304.0,0.01049273]
[1768621978118,0.01149218,95309.0,95304.0,0.01049273]
[1768621979225,0.01049207,95310.0,95305.0,0.01049262]
[1768621979429,0.01049218,95309.0,95304.0,0.01049273]
[1768621979645,0.01049218,95309.0,95305.0,0.01049262]
[1768621979993,0.01049218,95309.0,95304.0,0.01049273]
[1768621980199,0.01049229,95308.0,95304.0,0.01049273]
[1768621980392,0.01049229,95308.0,95303.0,0.01049284]
[1768621980574,0.01049229,95308.0,95304.0,0.01049273]
[1768621981495,0.01049218,95309.0,95305.0,0.01049262]
[1768621981701,0.01049229,95308.0,95303.0,0.01049284]
[1768621982023,0.01049229,95308.0,95303.0,0.06295669]
[1768621982623,0.06395254,95310.0,95303.0,0.06295669]
[1768621982624,0.01049207,95310.0,95303.0,0.06295669]
[1768621982843,0.00047641,95314.0,95311.0,0.01049196]
[1768621983093,0.00047641,95314.0,95300.0,0.04687798]
[1768621983272,0.01049174,95313.0,95308.0,0.01049229]
[1768621984275,0.01049185,95312.0,95308.0,0.01049229]
[1768621985281,0.01049174,95313.0,95309.0,0.04687798]
[1768621985506,0.01049174,95313.0,95309.0,0.05737016]
[1768621985707,0.01049174,95313.0,95309.0,0.05730115]
[1768621986144,0.01096804,95314.0,95310.0,0.01049207]
[1768621986308,0.01096804,95314.0,95309.0,0.05730115]
[1768621986508,0.01096804,95314.0,95310.0,0.01049207]
[1768621987194,0.01049174,95313.0,95309.0,0.05730115]
[1768621987399,0.01049174,95313.0,95309.0,0.01049218]
[1768621987798,0.01049185,95312.0,95308.0,0.01049229]
[1768621988637,0.01049185,95312.0,95307.0,0.04687798]
[1768621988807,0.01049196,95311.0,95307.0,0.05737038]
[1768621989041,0.01049174,95313.0,95309.0,0.01049218]
[1768621989591,0.01049185,95312.0,95308.0,0.01049229]
[1768621989736,0.01049174,95313.0,95308.0,0.01049229]
[1768621989943,0.01096804,95314.0,95310.0,0.01049207]
[1768621990381,0.01049174,95313.0,95308.0,0.01049229]
[1768621991054,0.01049185,95312.0,95308.0,0.01049229]
[1768621992434,0.01049174,95313.0,95309.0,0.01049218]
[1768621992840,0.01096804,95314.0,95308.0,0.06295372]
[1768621993039,0.01049174,95313.0,95309.0,0.01049218]
[1768621993596,0.00047641,95314.0,95311.0,0.01049196]
[1768621993735,0.00047641,95314.0,95311.0,0.06295169]
[1768621994085,0.00047641,95314.0,95312.0,0.0524592]
[1768621994279,0.00047641,95314.0,95311.0,0.06295163]
[1768621994660,0.00047641,95314.0,95311.0,0.01049196]
[1768621994862,0.00047641,95314.0,95311.0,0.06295168]
[1768621995107,0.00047641,95314.0,95312.0,0.05245923]
[1768621995666,0.00147641,95314.0,95312.0,0.05245923]
[1768621996122,0.00047641,95314.0,95312.0,0.05245923]
[1768621996328,0.00047641,95314.0,95311.0,0.06295147]
[1768621996568,0.00147641,95314.0,95313.0,0.05245874]
[1768621996773,0.00147641,95314.0,95312.0,0.05245888]
[1768621996946,0.00108225,95314.0,95311.0,0.01049196]
[1768621997157,0.01136397,95320.0,95311.0,0.01049196]
[1768621997158,0.000873,95320.0,95317.0,0.0104913]
[1768621997374,0.000873,95320.0,95316.0,0.01049141]
[1768621997627,0.000873,95320.0,95317.0,0.0104913]
[1768621998754,1e-08,95320.0,95319.0,0.05245543]
[1768621999607,1e-08,95320.0,95319.0,0.04687798]
[1768621999931,1e-08,95320.0,95319.0,0.09933341]
[1768622001343,1e-08,95320.0,95319.0,0.0992644]
[1768622001936,1e-08,95320.0,95319.0,0.04676359]
[1768622002160,1e-08,95320.0,95319.0,0.09921902]
[1768622002872,1e-08,95320.0,95319.0,0.04676359]
[1768622003078,1e-08,95320.0,95319.0,0.09921902]
[1768622004273,1e-08,95320.0,95319.0,0.05245543]
[1768622005188,1e-08,95320.0,95317.0,0.05739457]
[1768622005390,1e-08,95320.0,95318.0,0.05245559]
[1768622005737,1e-08,95320.0,95317.0,0.10985078]
[1768622006132,1e-08,95320.0,95317.0,0.05739457]
[1768622006538,1e-08,95320.0,95317.0,0.10985094]
[1768622007515,1e-08,95320.0,95314.0,0.0629494]
[1768622007713,1e-08,95320.0,95316.0,0.01049141]
[1768622008436,0.01049098,95320.0,95315.0,0.01049152]
[1768622008788,0.01049108,95319.0,95314.0,0.01049163]
[1768622008995,0.01049108,95319.0,95315.0,0.01049152]
[1768622010181,1e-08,95320.0,95316.0,0.01049141]
[1768622010385,1e-08,95320.0,95317.0,0.06294767]
[1768622010987,1e-08,95320.0,95317.0,0.0629477]
[1768622011625,1e-08,95320.0,95318.0,0.05245591]
[1768622011955,1e-08,95320.0,95317.0,0.06294774]
[1768622012536,1e-08,95320.0,95317.0,0.0104913]
[1768622012872,1e-08,95320.0,95318.0,0.05245598]
[1768622013065,1e-08,95320.0,95317.0,0.0104913]
[1768622013206,1e-08,95320.0,95317.0,0.06294741]
[1768622013405,1e-08,95320.0,95317.0,0.0104913]
[1768622013586,1e-08,95320.0,95318.0,0.05245594]
[1768622014615,1e-08,95320.0,95319.0,0.05245543]
[1768622015081,1e-08,95320.0,95318.0,0.05245587]
[1768622015209,1e-08,95320.0,95317.0,0.0104913]
[1768622015653,1e-08,95320.0,95319.0,0.05245543]
[1768622017302,1e-08,95320.0,95319.0,0.10167671]
[1768622018906,1e-08,95320.0,95319.0,0.05245543]
[1768622019757,1e-08,95320.0,95319.0,0.10167671]
[1768622022010,1e-08,95320.0,95319.0,0.05245543]
[1768622022791,1e-08,95320.0,95319.0,0.10167671]
[1768622023146,1e-08,95320.0,95319.0,0.05245543]
[1768622023731,1e-08,95320.0,95319.0,0.10167671]
[1768622025035,1e-08,95323.0,95322.0,0.05245378]
[1768622025194,4.726e-05,95323.0,95322.0,0.05245378]
[1768622025397,0.01048987,95330.0,95322.0,0.05245378]
[1768622025398,0.05260865,95332.0,95324.0,0.05245268]
[1768622025653,0.01048965,95332.0,95323.0,0.01049064]
[1768622025811,0.01048976,95331.0,95325.0,0.01049042]
[1768622026018,0.01048987,95330.0,95326.0,0.01049031]
[1768622026219,0.01048998,95329.0,95325.0,0.01049042]
[1768622026433,0.01048976,95331.0,95326.0,0.01049031]
[1768622027266,0.01048976,95331.0,95327.0,0.0104902]
[1768622027633,0.01048965,95332.0,95327.0,0.0104902]
[1768622027833,0.01048976,95331.0,95326.0,0.01049031]
[1768622028166,0.01048976,95331.0,95323.0,0.06294284]
[1768622028167,0.01048998,95329.0,95324.0,0.01049053]
[1768622028503,0.01049009,95328.0,95324.0,0.01049053]
[1768622028652,0.01048998,95329.0,95325.0,0.01049042]
[1768622028863,0.01049009,95328.0,95324.0,0.01049053]
[1768622029285,0.01048987,95330.0,95325.0,0.0629424]
[1768622029511,0.01048976,95331.0,95326.0,0.01049031]
[1768622030057,0.01048976,95331.0,95327.0,0.0104902]
[1768622030252,0.0524489,95331.0,95326.0,0.01049031]
[1768622030455,0.01048998,95329.0,95325.0,0.01049042]
[1768622031313,0.01048987,95330.0,95326.0,0.01049031]
[1768622031657,0.01048976,95331.0,95326.0,0.01049031]
[1768622032061,0.06293733,95333.0,95327.0,0.0104902]
[1768622032307,0.01048965,95332.0,95327.0,0.0104902]
[1768622032663,0.01048954,95333.0,95328.0,0.01049009]
[1768622032861,0.01048965,95332.0,95326.0,0.01049031]
[1768622033059,0.01048965,95332.0,95328.0,0.01049009]
[1768622034094,0.01048976,95331.0,95326.0,0.01049031]
[1768622034789,0.01048987,95330.0,95325.0,0.01049042]
[1768622034988,0.01048987,95330.0,95326.0,0.01049031]
[1768622035210,0.01048998,95329.0,95325.0,0.01049042]
[1768622035379,0.01048987,95330.0,95326.0,0.01049031]
[1768622036436,0.01048976,95331.0,95327.0,0.0104902]
[1768622036760,0.01048965,95332.0,95327.0,0.0104902]
[1768622037383,0.01049009,95328.0,95321.0,0.01049086]
[1768622037703,0.01049042,95325.0,95320.0,0.01049097]
[1768622038021,0.01049031,95326.0,95321.0,0.01049086]
[1768622038172,0.01049053,95324.0,95320.0,0.01049097]
[1768622038356,0.01049042,95325.0,95321.0,0.01049086]
[1768622038558,0.01049053,95324.0,95319.0,0.05971236]
[1768622038901,0.01049053,95324.0,95320.0,0.01049097]
[1768622039108,0.01049075,95322.0,95319.0,0.04922128]
[1768622039256,0.01049064,95323.0,95319.0,0.05971236]
[1768622040381,0.01049075,95322.0,95319.0,0.04922128]
[1768622040582,0.01049053,95324.0,95320.0,0.01049097]
[1768622040778,0.01049075,95322.0,95319.0,0.04922128]
[1768622040968,0.01049053,95324.0,95319.0,0.05971236]
[1768622041171,0.01049042,95325.0,95319.0,0.05971236]
[1768622041396,0.01049042,95325.0,95321.0,0.01049086]
[1768622041602,0.06294141,95327.0,95322.0,0.01049075]
[1768622041803,0.01049031,95326.0,95320.0,0.01049097]
[1768622042157,0.01049064,95323.0,95319.0,0.05971236]
[1768622042302,0.01049064,95323.0,95319.0,0.01049108]
[1768622043183,0.06294669,95319.0,95313.0,0.01049174]
[1768622043393,0.01049097,95320.0,95316.0,0.02649618]
[1768622043602,0.01049108,95319.0,95316.0,0.02649618]
[1768622044984,0.0104913,95317.0,95312.0,0.01049185]
[1768622045293,0.01049119,95318.0,95313.0,0.01049174]
[1768622045510,0.01049108,95319.0,95315.0,0.01049152]
[1768622045920,0.01049119,95318.0,95314.0,0.01049163]
[1768622046318,0.0104913,95317.0,95313.0,0.01049174]
[1768622046521,0.01049119,95318.0,95314.0,0.01049163]
[1768622046743,0.0104913,95317.0,95312.0,0.0105391]
[1768622047103,0.01049119,95318.0,95313.0,0.01049174]
[1768622047714,0.0104913,95317.0,95312.0,0.0105391]
[1768622047915,0.01049119,95318.0,95313.0,0.01049174]
[1768622048122,0.01049119,95318.0,95314.0,0.01049163]
[1768622048317,0.01049108,95319.0,95314.0,0.01049163]
[1768622048564,0.01049119,95318.0,95313.0,0.01049174]
[1768622049328,0.01049119,95318.0,95312.0,0.06299832]
[1768622049329,0.0104913,95317.0,95312.0,4.725e-05]
[1768622049699,0.01049152,95315.0,95312.0,4.725e-05]
[1768622050124,0.05245874,95313.0,95312.0,4.725e-05]
[1768622050557,0.01049152,95315.0,95312.0,4.725e-05]
[1768622050767,0.05245867,95314.0,95312.0,4.725e-05]
[1768622050954,0.01049152,95315.0,95312.0,4.725e-05]
[1768622050955,0.05245874,95313.0,95312.0,4.725e-05]
[1768622051766,0.0524583,95314.0,95312.0,4.725e-05]
[1768622052172,0.05245874,95313.0,95312.0,4.725e-05]
[1768622052370,0.01049152,95315.0,95312.0,4.725e-05]
[1768622052526,0.05245819,95314.0,95312.0,4.725e-05]
[1768622052733,0.01049152,95315.0,95312.0,4.725e-05]
[1768622052929,0.05245874,95313.0,95312.0,4.725e-05]
[1768622061012,0.05142206,95313.0,95312.0,4.725e-05]
[1768622061217,0.05089749,95313.0,95312.0,4.725e-05]
[1768622062242,0.05245837,95314.0,95312.0,4.725e-05]
[1768622064000,0.05245874,95313.0,95312.0,4.725e-05]
[1768622064906,0.05245826,95314.0,95312.0,4.725e-05]
[1768622065328,0.02326697,95315.0,95312.0,4.725e-05]
[1768622065481,0.05245874,95313.0,95312.0,4.725e-05]
[1768622065685,0.05245836,95314.0,95312.0,4.725e-05]
[1768622065868,0.06523381,95314.0,95312.0,4.725e-05]
[1768622067133,0.01277545,95314.0,95312.0,4.725e-05]
[1768622067335,0.06523364,95314.0,95312.0,4.725e-05]
[1768622067513,0.05245874,95313.0,95312.0,4.725e-05]
[1768622067716,0.06523407,95314.0,95312.0,4.725e-05]
[1768622067915,0.01277545,95314.0,95312.0,4.725e-05]
[1768622068139,0.06523364,95314.0,95312.0,4.725e-05]
[1768622068317,0.01277545,95314.0,95312.0,4.725e-05]
[1768622068816,0.06523383,95314.0,95312.0,4.725e-05]
[1768622069017,0.05245874,95313.0,95312.0,4.725e-05]
[1768622069218,0.06523402,95314.0,95312.0,4.725e-05]
[1768622069415,0.05245874,95313.0,95312.0,4.725e-05]
[1768622069617,0.0652337,95314.0,95312.0,4.725e-05]
[1768622071843,0.01277545,95314.0,95312.0,4.725e-05]
[1768622072048,0.01049075,95322.0,95312.0,0.05832883]
[1768622072272,0.01049086,95321.0,95316.0,0.01049141]
[1768622072479,0.13761042,95325.0,95320.0,0.04778973]
[1768622073095,0.01049053,95324.0,95320.0,0.0582807]
[1768622074557,0.01049064,95323.0,95320.0,0.04778973]
[1768622077431,0.01049053,95324.0,95320.0,0.0582807]
[1768622079368,0.01049042,95325.0,95322.0,0.04778973]
[1768622079974,0.01049042,95325.0,95321.0,0.01049086]
[1768622080604,0.01049053,95324.0,95319.0,0.01049108]
[1768622080848,0.01049064,95323.0,95319.0,0.01049108]
[1768622081687,0.01049053,95324.0,95320.0,0.01049097]
[1768622084144,0.01049042,95325.0,95320.0,0.01049097]
[1768622085561,0.01049053,95324.0,95319.0,0.01049108]
[1768622086341,0.01049053,95324.0,95320.0,0.01049097]
[1768622086808,0.01039975,95324.0,95320.0,0.01049097]
[1768622087459,0.01049042,95325.0,95321.0,0.01049086]
[1768622089273,0.01049064,95323.0,95319.0,0.01049108]
[1768622089490,0.01049075,95322.0,95318.0,0.01049119]
[1768622089703,0.01049053,95324.0,95319.0,0.01049108]
[1768622090110,0.01049064,95323.0,95319.0,0.01049108]
[1768622091668,0.01049053,95324.0,95320.0,0.01049097]
[1768622092356,0.01049053,95324.0,95319.0,0.01049108]
[1768622093513,0.01049053,95324.0,95320.0,0.01049097]
[1768622094856,0.06294202,95326.0,95321.0,0.01049086]
[1768622094857,0.01049031,95326.0,95321.0,0.01049086]
[1768622095009,0.01049031,95326.0,95321.0,0.06294513]
[1768622095647,0.01049031,95326.0,95321.0,0.01049086]
[1768622096265,0.01049031,95326.0,95322.0,0.01049075]
[1768622099151,0.0104902,95327.0,95323.0,0.01049064]
[1768622099351,0.01049031,95326.0,95322.0,0.01049075]
[1768622100379,0.01049042,95325.0,95321.0,0.01049086]
[1768622101919,0.01049042,95325.0,95320.0,0.01049097]
[1768622102266,0.01049042,95325.0,95321.0,0.01049086]
[1768622103472,0.01049031,95326.0,95322.0,0.01049075]
[1768622104500,0.01049031,95326.0,95321.0,0.01049086]
[1768622105287,0.01049042,95325.0,95320.0,0.01049097]
[1768622105494,0.01049064,95323.0,95319.0,0.01049108]
[1768622105930,0.01049053,95324.0,95319.0,0.01049108]
[1768622106586,0.01049053,95324.0,95319.0,0.06294651]
[1768622107256,0.01049053,95324.0,95320.0,0.01049097]
[1768622107905,0.01049064,95323.0,95319.0,0.01049108]
[1768622108242,0.01049064,95323.0,95318.0,0.06294708]
[1768622108243,0.01049064,95323.0,95318.0,0.01049119]
[1768622108442,0.01049075,95322.0,95318.0,0.01049119]
[1768622108586,0.01039993,95322.0,95318.0,0.01049119]
[1768622108787,0.01039993,95322.0,95317.0,0.0104913]
[1768622109774,0.01049086,95321.0,95317.0,0.0104913]
[1768622109978,0.01049086,95321.0,95316.0,0.06294809]
[1768622110182,0.01039993,95322.0,95318.0,0.01049119]
[1768622110391,0.01049064,95323.0,95319.0,0.01049108]
[1768622110994,0.01049053,95324.0,95320.0,0.01049097]
[1768622111737,0.01049053,95324.0,95319.0,0.01049108]
[1768622112080,0.01049053,95324.0,95320.0,0.01049097]
[1768622112319,0.06294425,95323.0,95318.0,0.01049119]
[1768622112669,0.01049086,95321.0,95316.0,0.01049141]
[1768622113117,0.01049086,95321.0,95317.0,0.0104913]
[1768622113534,0.01049086,95321.0,95316.0,0.01049141]
[1768622114046,0.01049075,95322.0,95318.0,0.01049119]
[1768622117749,0.01049064,95323.0,95318.0,0.01049119]
[1768622118192,0.01049075,95322.0,95318.0,0.01049119]
[1768622121102,0.00889228,95323.0,95319.0,0.01049108]
[1768622121315,0.01049053,95324.0,95319.0,0.06294641]
[1768622121535,0.06294141,95327.0,95322.0,0.01049075]
[1768622121745,0.0104902,95327.0,95323.0,0.01049064]
[1768622123535,0.01048976,95331.0,95324.0,0.01049053]
[1768622123755,0.01048943,95334.0,95328.0,0.01049009]
[1768622123970,0.12712,95331.0,95330.0,0.01048987]
[1768622124614,0.12712,95331.0,95328.0,0.01049009]
[1768622125716,0.12712,95331.0,95327.0,0.0104902]
[1768622126768,0.01048965,95332.0,95327.0,0.0104902]
[1768622126987,0.13760965,95332.0,95327.0,0.0104902]
[1768622127428,0.01048976,95331.0,95324.0,0.05245256]
[1768622127650,0.01048976,95331.0,95325.0,0.01049042]
[1768622127865,0.01048987,95330.0,95326.0,0.01049031]
[1768622128300,0.01048987,95330.0,95325.0,0.01049042]
[1768622128518,0.01048987,95330.0,95326.0,0.01049031]
[1768622128763,0.01048998,95329.0,95325.0,0.01049042]
[1768622129404,0.01048987,95330.0,95326.0,0.01049031]
[1768622130262,0.01048998,95329.0,95325.0,0.01049042]
[1768622131214,0.01048987,95330.0,95325.0,0.01049042]
[1768622131839,0.01048998,95329.0,95325.0,0.01049042]
[1768622132260,0.01048987,95330.0,95326.0,0.01049031]
[1768622133809,0.01048987,95330.0,95325.0,0.01049042]
[1768622134013,0.01048998,95329.0,95325.0,0.01049042]
[1768622134379,0.01048987,95330.0,95325.0,0.01049042]
[1768622135028,0.01048987,95330.0,95326.0,0.01049031]
[1768622135227,0.01048998,95329.0,95325.0,0.01049042]
[1768622135437,0.01048987,95330.0,95326.0,0.01049031]
[1768622137611,0.01048976,95331.0,95326.0,0.01049031]
[1768622137775,0.01048976,95331.0,95327.0,0.0104902]
[1768622138342,0.01048987,95330.0,95326.0,0.01049031]
[1768622138522,0.13760965,95332.0,95326.0,0.01049031]
[1768622138523,0.13760965,95332.0,95327.0,0.0104902]
[1768622138734,0.01048976,95331.0,95327.0,0.0104902]
[1768622140290,0.13760965,95332.0,95328.0,0.01049009]
[1768622140425,0.01048976,95331.0,95327.0,0.0104902]
[1768622141270,0.01048987,95330.0,95326.0,0.01049031]
[1768622141430,0.01048998,95329.0,95325.0,0.01049042]
[1768622141637,0.01039916,95329.0,95325.0,0.01049042]
[1768622141844,0.01039916,95329.0,95324.0,0.01049053]
[1768622142502,0.01039916,95329.0,95325.0,0.01049042]
[1768622143636,0.01039916,95329.0,95324.0,0.01049053]
[1768622143962,0.06284919,95329.0,95324.0,0.01049053]
[1768622144247,0.01048943,95334.0,95329.0,0.01048998]
[1768622144444,0.01048921,95336.0,95331.0,0.01048976]
[1768622144623,0.13760921,95336.0,95331.0,0.01048976]
[1768622144914,0.01048932,95335.0,95330.0,0.01048987]
[1768622145545,0.01048943,95334.0,95330.0,0.01048987]
[1768622145697,0.01048954,95333.0,95329.0,0.01048998]
[1768622145901,0.01048954,95333.0,95328.0,0.01049009]
[1768622146105,0.01048954,95333.0,95329.0,0.01048998]
[1768622147090,0.01048943,95334.0,95329.0,0.01048998]
[1768622147513,0.13760921,95336.0,95330.0,0.01048987]
[1768622147773,0.01048932,95335.0,95331.0,0.01048976]
[1768622148431,0.13760921,95336.0,95332.0,0.01048965]
[1768622148800,0.12712,95336.0,95333.0,0.01048954]
[1768622149134,0.12712,95336.0,95330.0,0.01048987]
[1768622149135,0.01048932,95335.0,95330.0,0.01048987]
[1768622149529,0.01048932,95335.0,95330.0,0.06293889]
[1768622149860,0.01048932,95335.0,95330.0,0.01048987]
[1768622150179,0.01048932,95335.0,95331.0,0.01048976]
[1768622150590,0.13760921,95336.0,95332.0,0.01048965]
[1768622157180,0.12712,95336.0,95332.0,0.01048965]
[1768622157415,0.12712,95336.0,95333.0,0.01048954]
[1768622158281,0.13760921,95336.0,95332.0,0.01048965]
[1768622158944,0.01048943,95334.0,95330.0,0.01048987]
[1768622159169,0.01048943,95334.0,95329.0,0.01048998]
[1768622159382,0.01048954,95333.0,95329.0,0.01048998]
[1768622159792,0.01048976,95331.0,95326.0,0.01049031]
[1768622160235,0.06293881,95331.0,95326.0,0.01049031]
[1768622160469,0.06293881,95331.0,95325.0,0.01049042]
[1768622160470,0.01048998,95329.0,95325.0,0.01049042]
[1768622160904,0.01048987,95330.0,95325.0,0.01049042]
[1768622161052,0.01048987,95330.0,95326.0,0.01049031]
[1768622161260,0.01048998,95329.0,95325.0,0.01049042]
[1768622162290,0.01049009,95328.0,95324.0,0.05644277]
[1768622163151,0.01048987,95330.0,95326.0,0.01049031]
[1768622163450,0.01048976,95331.0,95326.0,0.01049031]
[1768622163657,0.01048987,95330.0,95326.0,0.01049031]
[1768622163964,0.01048976,95331.0,95324.0,0.04595224]
[1768622164111,0.01049009,95328.0,95323.0,0.01049064]
[1768622164507,0.01049009,95328.0,95320.0,0.06294548]
[1768622164508,0.01049053,95324.0,95320.0,0.01049097]
[1768622164734,0.01049031,95326.0,95322.0,0.045824]
[1768622164933,0.01049042,95325.0,95321.0,0.01049086]
[1768622165128,0.01049031,95326.0,95320.0,0.01049097]
[1768622165450,0.01049075,95322.0,95318.0,0.05631519]
[1768622165650,0.01049075,95322.0,95318.0,0.045824]
[1768622165863,0.06294461,95322.0,95318.0,0.045824]